[Event "*** Titled Tuesday Blitz"]
[Site "Chess.com"]
[Date "2021.04.20"]
[Round "3"]
[White "PavelChernomordik"]
[Black "OriTaichman"]
[Result "1-0"]
[WhiteElo "2378"]
[BlackElo "2543"]
[TimeControl "180+1"]
[EndTime "10:28:44 PDT"]
[Termination "PavelChernomordik won by checkmate"]

1. e4 {[%clk 0:03:00.9]} 1... c5 {[%clk 0:02:57.4]} 2. Nc3 {[%clk 0:03:00.5]}
2... g6 {[%clk 0:02:57.3]} 3. f4 {[%clk 0:02:59]} 3... Bg7 {[%clk 0:02:57.2]} 4.
Nf3 {[%clk 0:02:59.3]} 4... Nc6 {[%clk 0:02:56.8]} 5. Bb5 {[%clk 0:02:56.5]}
5... Nd4 {[%clk 0:02:56.9]} 6. Bc4 {[%clk 0:02:54.7]} 6... e6 {[%clk 0:02:54]}
7. O-O {[%clk 0:02:49.1]} 7... Ne7 {[%clk 0:02:54.2]} 8. e5 {[%clk 0:02:43.9]}
8... d5 {[%clk 0:02:54]} 9. Nxd4 {[%clk 0:02:32.1]} 9... cxd4 {[%clk 0:02:26.1]}
10. Bb5+ {[%clk 0:02:30.2]} 10... Kf8 {[%clk 0:01:57.6]} 11. Ne2 {[%clk
0:02:23.7]} 11... Qb6 {[%clk 0:01:56.2]} 12. Bd3 {[%clk 0:02:22.2]} 12... h5
{[%clk 0:01:51.9]} 13. b3 {[%clk 0:02:17.8]} 13... Nf5 {[%clk 0:01:49.7]} 14.
Bb2 {[%clk 0:02:10.5]} 14... Kg8 {[%clk 0:01:00]} 15. Qe1 {[%clk 0:02:08.2]}
15... h4 {[%clk 0:00:59.6]} 16. Qf2 {[%clk 0:02:07.3]} 16... Bd7 {[%clk
0:00:46.1]} 17. Nxd4 {[%clk 0:01:56.1]} 17... Nxd4 {[%clk 0:00:34.4]} 18. Bxd4
{[%clk 0:01:55.2]} 18... Qc7 {[%clk 0:00:25.3]} 19. Bxa7 {[%clk 0:01:49.6]}
19... h3 {[%clk 0:00:21.7]} 20. g3 {[%clk 0:01:45.5]} 20... d4 {[%clk
0:00:08.7]} 21. Bxd4 {[%clk 0:01:44.1]} 21... Bc6 {[%clk 0:00:08.9]} 22. Rfe1
{[%clk 0:01:38.9]} 22... Qd7 {[%clk 0:00:07.6]} 23. Be4 {[%clk 0:01:34.2]} 23...
Bf8 {[%clk 0:00:07.2]} 24. d3 {[%clk 0:01:28.9]} 24... Bb4 {[%clk 0:00:06.7]}
25. c3 {[%clk 0:01:28.5]} 25... Ba3 {[%clk 0:00:07]} 26. b4 {[%clk 0:01:26.3]}
26... Rc8 {[%clk 0:00:05.5]} 27. Rab1 {[%clk 0:01:16.5]} 27... Kg7 {[%clk
0:00:04]} 28. Rb3 {[%clk 0:01:09]} 28... Ra8 {[%clk 0:00:04.4]} 29. Qf3 {[%clk
0:00:59.9]} 29... Bxe4 {[%clk 0:00:04.1]} 30. Qxe4 {[%clk 0:00:59.1]} 30... Rhd8
{[%clk 0:00:03.9]} 31. c4 {[%clk 0:00:52.4]} 31... b5 {[%clk 0:00:02.2]} 32. Bc5
{[%clk 0:00:47.4]} 32... bxc4 {[%clk 0:00:02.1]} 33. Qxc4 {[%clk 0:00:45.9]}
33... Rac8 {[%clk 0:00:02.4]} 34. Qe4 {[%clk 0:00:45.4]} 34... Rxc5 {[%clk
0:00:02.2]} 35. bxc5 {[%clk 0:00:44.6]} 35... Bxc5+ {[%clk 0:00:03.1]} 36. Kf1
{[%clk 0:00:44.3]} 36... Bd4 {[%clk 0:00:04]} 37. Rc1 {[%clk 0:00:39.5]} 37...
Qa4 {[%clk 0:00:04.7]} 38. Rc2 {[%clk 0:00:38.6]} 38... Qa7 {[%clk 0:00:05.1]}
39. Qb7 {[%clk 0:00:35.6]} 39... Qa4 {[%clk 0:00:04.4]} 40. Qb5 {[%clk
0:00:32.2]} 40... Qa8 {[%clk 0:00:05]} 41. Qb7 {[%clk 0:00:30.3]} 41... Qa5
{[%clk 0:00:05.7]} 42. Ke2 {[%clk 0:00:29]} 42... Bg1 {[%clk 0:00:05.4]} 43. Rc7
{[%clk 0:00:21.8]} 43... Rf8 {[%clk 0:00:05.4]} 44. Kf3 {[%clk 0:00:16.9]} 44...
Qxa2 {[%clk 0:00:05]} 45. Rb2 {[%clk 0:00:16.1]} 45... Qa3 {[%clk 0:00:05.1]}
46. Kg4 {[%clk 0:00:14.6]} 46... Qxd3 {[%clk 0:00:05.1]} 47. Kxh3 {[%clk
0:00:13.4]} 47... Qf1+ {[%clk 0:00:04.4]} 48. Qg2 {[%clk 0:00:11.9]} 48... Qa1
{[%clk 0:00:05]} 49. Ra2 {[%clk 0:00:10.1]} 49... Rh8+ {[%clk 0:00:05.7]} 50.
Kg4 {[%clk 0:00:08.3]} 50... Qd1+ {[%clk 0:00:06.5]} 51. Qe2 {[%clk 0:00:07.9]}
51... Qd5 {[%clk 0:00:06.5]} 52. Raa7 {[%clk 0:00:06.9]} 52... Kh6 {[%clk
0:00:05.5]} 53. Rxf7 {[%clk 0:00:06.1]} 53... Bxh2 {[%clk 0:00:05.3]} 54. Qxh2#
{[%clk 0:00:04.3]} 1-0

[Event "*** Titled Tuesday Blitz"]
[Site "Chess.com"]
[Date "2021.04.20"]
[Round "3"]
[White "stepakyedael"]
[Black "InvisibleWarrior2252"]
[Result "0-1"]
[WhiteElo "2234"]
[BlackElo "2506"]
[TimeControl "180+1"]
[EndTime "10:28:45 PDT"]
[Termination "InvisibleWarrior2252 won on time"]

1. d4 {[%clk 0:02:41.8]} 1... Nf6 {[%clk 0:02:58.9]} 2. c4 {[%clk 0:02:41.8]}
2... e6 {[%clk 0:02:59.2]} 3. Nf3 {[%clk 0:02:40.2]} 3... d5 {[%clk 0:02:58.3]}
4. e3 {[%clk 0:02:40]} 4... dxc4 {[%clk 0:02:57.2]} 5. Bxc4 {[%clk 0:02:38.8]}
5... a6 {[%clk 0:02:57.9]} 6. O-O {[%clk 0:02:38.2]} 6... b5 {[%clk 0:02:58.4]}
7. Be2 {[%clk 0:02:38.1]} 7... Bb7 {[%clk 0:02:58.8]} 8. a3 {[%clk 0:02:38]}
8... Nbd7 {[%clk 0:02:59]} 9. Nbd2 {[%clk 0:02:38.1]} 9... c5 {[%clk 0:02:59]}
10. dxc5 {[%clk 0:02:37]} 10... Nxc5 {[%clk 0:02:55.5]} 11. b4 {[%clk
0:02:37.1]} 11... Na4 {[%clk 0:02:55.5]} 12. Nb3 {[%clk 0:02:30.9]} 12... Bd6
{[%clk 0:02:51.5]} 13. Na5 {[%clk 0:02:24.3]} 13... Bd5 {[%clk 0:02:47.1]} 14.
Qd4 {[%clk 0:02:04]} 14... Bc7 {[%clk 0:02:35.4]} 15. Bd2 {[%clk 0:01:56.8]}
15... Qb8 {[%clk 0:02:24.8]} 16. h3 {[%clk 0:01:52.3]} 16... O-O {[%clk
0:02:23.5]} 17. Rfc1 {[%clk 0:01:45.1]} 17... Rd8 {[%clk 0:02:21.5]} 18. Qh4
{[%clk 0:01:42.4]} 18... Bxa5 {[%clk 0:01:53.4]} 19. bxa5 {[%clk 0:01:37.5]}
19... Bxf3 {[%clk 0:01:53.4]} 20. Bxf3 {[%clk 0:01:37.5]} 20... Rxd2 {[%clk
0:01:53.9]} 21. Bxa8 {[%clk 0:01:36.4]} 21... Qxa8 {[%clk 0:01:54.8]} 22. Rd1
{[%clk 0:01:23]} 22... Rxd1+ {[%clk 0:01:45.2]} 23. Rxd1 {[%clk 0:01:22]} 23...
h6 {[%clk 0:01:45.9]} 24. Qd4 {[%clk 0:01:18.5]} 24... Qc6 {[%clk 0:01:27.5]}
25. Qd8+ {[%clk 0:01:00.3]} 25... Kh7 {[%clk 0:01:27.1]} 26. Qd3+ {[%clk
0:00:59.9]} 26... Qe4 {[%clk 0:01:19.3]} 27. Qxe4+ {[%clk 0:00:57.1]} 27... Nxe4
{[%clk 0:01:20.2]} 28. Rd7 {[%clk 0:00:57.2]} 28... Kg6 {[%clk 0:01:16.6]} 29.
Ra7 {[%clk 0:00:55.4]} 29... Nec5 {[%clk 0:01:11.5]} 30. Kf1 {[%clk 0:00:51]}
30... Nc3 {[%clk 0:01:07.8]} 31. Rc7 {[%clk 0:00:46.8]} 31... N3e4 {[%clk
0:01:00.6]} 32. f3 {[%clk 0:00:43.1]} 32... Nd2+ {[%clk 0:01:00.8]} 33. Ke2
{[%clk 0:00:39.8]} 33... Ndb3 {[%clk 0:01:01.7]} 34. Rc6 {[%clk 0:00:29.5]}
34... Kf6 {[%clk 0:00:52.4]} 35. g4 {[%clk 0:00:27]} 35... Ke7 {[%clk
0:00:44.9]} 36. Rc7+ {[%clk 0:00:25.7]} 36... Ke8 {[%clk 0:00:42.1]} 37. Kf2
{[%clk 0:00:20.5]} 37... Nd3+ {[%clk 0:00:32.9]} 38. Kg3 {[%clk 0:00:19.9]}
38... Nxa5 {[%clk 0:00:32.8]} 39. Rc8+ {[%clk 0:00:17.3]} 39... Kd7 {[%clk
0:00:28.7]} 40. Rf8 {[%clk 0:00:16.6]} 40... Ke7 {[%clk 0:00:28]} 41. Ra8 {[%clk
0:00:15.4]} 41... Nc5 {[%clk 0:00:26.3]} 42. e4 {[%clk 0:00:15.5]} 42... Nc4
{[%clk 0:00:25.5]} 43. Ra7+ {[%clk 0:00:13.9]} 43... Kf6 {[%clk 0:00:20.9]} 44.
Rc7 {[%clk 0:00:13.5]} 44... Na4 {[%clk 0:00:19.2]} 45. Rc6 {[%clk 0:00:11.5]}
45... Nxa3 {[%clk 0:00:18.8]} 46. Rxa6 {[%clk 0:00:09.5]} 46... Nc4 {[%clk
0:00:19.4]} 47. f4 {[%clk 0:00:07.5]} 47... Ke7 {[%clk 0:00:14.7]} 48. e5 {[%clk
0:00:07.3]} 48... Nc5 {[%clk 0:00:12.1]} 49. Ra7+ {[%clk 0:00:06.3]} 49... Ke8
{[%clk 0:00:10.9]} 50. h4 {[%clk 0:00:05.8]} 50... Ne4+ {[%clk 0:00:07.6]} 51.
Kf3 {[%clk 0:00:04]} 51... Nc3 {[%clk 0:00:08.1]} 52. Rb7 {[%clk 0:00:03]} 52...
Na5 {[%clk 0:00:07]} 53. Rb8+ {[%clk 0:00:01.9]} 53... Kd7 {[%clk 0:00:06.2]}
54. Rb6 {[%clk 0:00:02]} 54... Nc6 {[%clk 0:00:05.5]} 55. g5 {[%clk 0:00:01.1]}
55... b4 {[%clk 0:00:05.4]} 0-1

[Event "*** Titled Tuesday Blitz"]
[Site "Chess.com"]
[Date "2021.04.20"]
[Round "3"]
[White "klimkoj"]
[Black "Rsnr"]
[Result "1/2-1/2"]
[WhiteElo "2619"]
[BlackElo "2781"]
[TimeControl "180+1"]
[EndTime "10:28:47 PDT"]
[Termination "Game drawn by repetition"]

1. e4 {[%clk 0:03:00.9]} 1... c6 {[%clk 0:02:59.7]} 2. d4 {[%clk 0:02:57]} 2...
d5 {[%clk 0:03:00.6]} 3. Nc3 {[%clk 0:02:57.2]} 3... dxe4 {[%clk 0:03:00.7]} 4.
Nxe4 {[%clk 0:02:58.1]} 4... Bf5 {[%clk 0:03:01.5]} 5. Ng3 {[%clk 0:02:57.8]}
5... Bg6 {[%clk 0:03:02.1]} 6. Nf3 {[%clk 0:02:58.5]} 6... e6 {[%clk 0:03:02]}
7. h4 {[%clk 0:02:57.8]} 7... h6 {[%clk 0:03:02.2]} 8. Bd3 {[%clk 0:02:58.1]}
8... Bxd3 {[%clk 0:03:02.2]} 9. Qxd3 {[%clk 0:02:59]} 9... Nf6 {[%clk
0:03:03.1]} 10. O-O {[%clk 0:02:58]} 10... c5 {[%clk 0:02:58.2]} 11. Rd1 {[%clk
0:02:53.5]} 11... Nc6 {[%clk 0:02:58]} 12. Be3 {[%clk 0:02:32.3]} 12... Qb6
{[%clk 0:02:41.1]} 13. Ne4 {[%clk 0:02:17.2]} 13... Nxe4 {[%clk 0:02:33.6]} 14.
Qxe4 {[%clk 0:02:18.1]} 14... Be7 {[%clk 0:02:33.5]} 15. h5 {[%clk 0:01:39]}
15... O-O {[%clk 0:02:23.9]} 16. Ne5 {[%clk 0:01:32.7]} 16... Nxe5 {[%clk
0:02:10.5]} 17. dxe5 {[%clk 0:01:33.6]} 17... Rfd8 {[%clk 0:02:10.6]} 18. b3
{[%clk 0:01:30.2]} 18... Qb4 {[%clk 0:01:58.6]} 19. c4 {[%clk 0:01:22.3]} 19...
a5 {[%clk 0:01:51.8]} 20. Qc2 {[%clk 0:00:53.6]} 20... a4 {[%clk 0:01:46.7]} 21.
Rxd8+ {[%clk 0:00:47.3]} 21... Bxd8 {[%clk 0:01:42.2]} 22. Rd1 {[%clk
0:00:33.1]} 22... Bc7 {[%clk 0:01:29.5]} 23. f4 {[%clk 0:00:20.6]} 23... axb3
{[%clk 0:01:26.5]} 24. axb3 {[%clk 0:00:21.5]} 24... Rd8 {[%clk 0:00:32.4]} 25.
Rxd8+ {[%clk 0:00:19.9]} 25... Bxd8 {[%clk 0:00:33.3]} 26. Qd3 {[%clk
0:00:19.3]} 26... Be7 {[%clk 0:00:28.8]} 27. Bd2 {[%clk 0:00:18.8]} 27... Qb6
{[%clk 0:00:22.8]} 28. Be3 {[%clk 0:00:15.8]} 28... Qc6 {[%clk 0:00:21.5]} 29.
Bf2 {[%clk 0:00:09.5]} 29... f6 {[%clk 0:00:20.1]} 30. exf6 {[%clk 0:00:08.1]}
30... Bxf6 {[%clk 0:00:21]} 31. Qe3 {[%clk 0:00:08.3]} 31... b6 {[%clk
0:00:19.6]} 32. Qd3 {[%clk 0:00:07.1]} 32... Kf7 {[%clk 0:00:19.2]} 33. Qg6+
{[%clk 0:00:06.8]} 33... Ke7 {[%clk 0:00:19.9]} 34. Qd3 {[%clk 0:00:05.7]} 34...
Qe8 {[%clk 0:00:16.8]} 35. g4 {[%clk 0:00:05.2]} 35... Qc6 {[%clk 0:00:16.5]}
36. Be3 {[%clk 0:00:04.4]} 36... Bb2 {[%clk 0:00:06.7]} 37. g5 {[%clk
0:00:02.7]} 37... Qe8 {[%clk 0:00:05.2]} 38. g6 {[%clk 0:00:01.9]} 38... Qc6
{[%clk 0:00:04.9]} 39. Bf2 {[%clk 0:00:02.3]} 39... Bf6 {[%clk 0:00:04.9]} 40.
Qe3 {[%clk 0:00:02.4]} 40... Qd6 {[%clk 0:00:04.6]} 41. Qf3 {[%clk 0:00:02.5]}
41... Qd7 {[%clk 0:00:02.7]} 42. Kg2 {[%clk 0:00:02.7]} 42... Kd8 {[%clk
0:00:02.7]} 43. Qa8+ {[%clk 0:00:02.3]} 43... Ke7 {[%clk 0:00:03.3]} 44. Qe4
{[%clk 0:00:02.5]} 44... Qc7 {[%clk 0:00:03.2]} 45. f5 {[%clk 0:00:02.1]} 45...
Qd6 {[%clk 0:00:02.7]} 46. fxe6 {[%clk 0:00:02]} 46... Qxe6 {[%clk 0:00:03.6]}
47. Qb7+ {[%clk 0:00:02.1]} 47... Kd8 {[%clk 0:00:02.2]} 48. Qb8+ {[%clk
0:00:02.6]} 48... Kd7 {[%clk 0:00:02.5]} 49. Qb7+ {[%clk 0:00:02.9]} 49... Ke8
{[%clk 0:00:03.1]} 50. Qb8+ {[%clk 0:00:03.3]} 50... Bd8 {[%clk 0:00:03.5]} 51.
Qf4 {[%clk 0:00:03.5]} 51... Qd7 {[%clk 0:00:02]} 52. Qe4+ {[%clk 0:00:03.4]}
52... Kf8 {[%clk 0:00:02.6]} 53. Qf4+ {[%clk 0:00:03.3]} 53... Bf6 {[%clk
0:00:03.2]} 54. Qb8+ {[%clk 0:00:03.5]} 54... Ke7 {[%clk 0:00:03.8]} 55. Qxb6
{[%clk 0:00:02.9]} 55... Qg4+ {[%clk 0:00:04.1]} 56. Kf1 {[%clk 0:00:03.3]}
56... Qd1+ {[%clk 0:00:04.5]} 57. Kg2 {[%clk 0:00:03.6]} 57... Qg4+ {[%clk
0:00:04.3]} 58. Bg3 {[%clk 0:00:03]} 58... Qxh5 {[%clk 0:00:03.8]} 59. Qd6+
{[%clk 0:00:03.2]} 59... Ke8 {[%clk 0:00:04.1]} 60. Qb8+ {[%clk 0:00:03.3]}
60... Kd7 {[%clk 0:00:03.7]} 61. Qd6+ {[%clk 0:00:03.6]} 61... Ke8 {[%clk
0:00:04]} 62. Qe6+ {[%clk 0:00:03.9]} 62... Kd8 {[%clk 0:00:04.6]} 63. Qd6+
{[%clk 0:00:03.8]} 63... Ke8 {[%clk 0:00:05.3]} 1/2-1/2

[Event "*** Titled Tuesday Blitz"]
[Site "Chess.com"]
[Date "2021.04.20"]
[Round "3"]
[White "MerryPoppies"]
[Black "losersgame"]
[Result "0-1"]
[WhiteElo "2120"]
[BlackElo "2345"]
[TimeControl "180+1"]
[EndTime "10:28:50 PDT"]
[Termination "losersgame won by resignation"]

1. d4 {[%clk 0:03:00.9]} 1... Nf6 {[%clk 0:02:59.5]} 2. c3 {[%clk 0:03:01.8]}
2... g6 {[%clk 0:02:57.6]} 3. Nf3 {[%clk 0:03:01]} 3... Bg7 {[%clk 0:02:57.9]}
4. Bg5 {[%clk 0:03:01]} 4... d6 {[%clk 0:02:54.6]} 5. e3 {[%clk 0:03:00.4]} 5...
Nbd7 {[%clk 0:02:51.5]} 6. Bd3 {[%clk 0:03:00.1]} 6... c5 {[%clk 0:02:51.4]} 7.
O-O {[%clk 0:02:58.5]} 7... b6 {[%clk 0:02:48.9]} 8. Nbd2 {[%clk 0:02:51.4]}
8... h6 {[%clk 0:02:46.3]} 9. Bxf6 {[%clk 0:02:50.2]} 9... Bxf6 {[%clk
0:02:39.8]} 10. Ne4 {[%clk 0:02:49.5]} 10... Bg7 {[%clk 0:02:39.2]} 11. Nfd2
{[%clk 0:02:28.1]} 11... Bb7 {[%clk 0:02:33.4]} 12. f4 {[%clk 0:02:27.1]} 12...
Qc7 {[%clk 0:02:26.3]} 13. f5 {[%clk 0:02:12.2]} 13... g5 {[%clk 0:01:34.1]} 14.
Qh5 {[%clk 0:02:00.9]} 14... d5 {[%clk 0:01:33.3]} 15. Ng3 {[%clk 0:01:49.1]}
15... Nf6 {[%clk 0:01:33.1]} 16. Bb5+ {[%clk 0:01:45.8]} 16... Bc6 {[%clk
0:01:29.2]} 17. Bxc6+ {[%clk 0:01:45.8]} 17... Qxc6 {[%clk 0:01:30.1]} 18. Qf3
{[%clk 0:01:45.2]} 18... h5 {[%clk 0:01:11]} 19. e4 {[%clk 0:01:44.7]} 19... h4
{[%clk 0:01:03]} 20. exd5 {[%clk 0:01:43.4]} 20... Qxd5 {[%clk 0:00:59.2]} 21.
Nge4 {[%clk 0:01:35.1]} 21... Rd8 {[%clk 0:00:46.6]} 22. dxc5 {[%clk 0:01:27.8]}
22... bxc5 {[%clk 0:00:27]} 23. Rad1 {[%clk 0:01:20]} 23... Qxa2 {[%clk
0:00:17.2]} 24. Nxf6+ {[%clk 0:01:06.1]} 24... Bxf6 {[%clk 0:00:16.5]} 25. Qc6+
{[%clk 0:01:06.1]} 25... Kf8 {[%clk 0:00:16.1]} 26. Ne4 {[%clk 0:00:55.3]} 26...
Rxd1 {[%clk 0:00:15.9]} 27. Rxd1 {[%clk 0:00:54.8]} 27... Kg7 {[%clk 0:00:16.4]}
28. Qxc5 {[%clk 0:00:44.1]} 28... Qxb2 {[%clk 0:00:15.2]} 29. Nxf6 {[%clk
0:00:36.7]} 29... exf6 {[%clk 0:00:14.9]} 30. Qxa7 {[%clk 0:00:16.9]} 30... Qxc3
{[%clk 0:00:13.9]} 31. Qd4 {[%clk 0:00:16.8]} 31... Qc2 {[%clk 0:00:11.8]} 32.
Qd3 {[%clk 0:00:14.4]} 32... Qxd3 {[%clk 0:00:10.1]} 33. Rxd3 {[%clk 0:00:14.8]}
33... Re8 {[%clk 0:00:10.7]} 34. Kf2 {[%clk 0:00:15.1]} 34... Re5 {[%clk
0:00:10.5]} 35. Rf3 {[%clk 0:00:15.2]} 35... Kh6 {[%clk 0:00:09.5]} 36. g4
{[%clk 0:00:15]} 36... hxg3+ {[%clk 0:00:09]} 37. hxg3 {[%clk 0:00:15.4]} 37...
g4 {[%clk 0:00:09]} 38. Rf4 {[%clk 0:00:15.3]} 38... Kg5 {[%clk 0:00:09.5]} 39.
Kg2 {[%clk 0:00:13.7]} 39... Rxf5 {[%clk 0:00:09.9]} 40. Rb4 {[%clk 0:00:13.8]}
40... Ra5 {[%clk 0:00:10.3]} 41. Rc4 {[%clk 0:00:13.9]} 41... f5 {[%clk
0:00:10]} 42. Rc7 {[%clk 0:00:13.7]} 42... f4 {[%clk 0:00:08.2]} 43. Rxf7 {[%clk
0:00:13.5]} 43... Ra2+ {[%clk 0:00:07.6]} 44. Kf1 {[%clk 0:00:13.7]} 44... f3
{[%clk 0:00:07.2]} 45. Rg7+ {[%clk 0:00:13.7]} 45... Kf5 {[%clk 0:00:07]} 46.
Rf7+ {[%clk 0:00:13.9]} 46... Ke5 {[%clk 0:00:07.2]} 47. Re7+ {[%clk 0:00:14.2]}
47... Kd4 {[%clk 0:00:07.2]} 48. Rd7+ {[%clk 0:00:14.5]} 48... Ke3 {[%clk
0:00:07.2]} 49. Re7+ {[%clk 0:00:14.8]} 49... Kd3 {[%clk 0:00:06.8]} 50. Rd7+
{[%clk 0:00:15.2]} 50... Ke3 {[%clk 0:00:06.8]} 51. Re7+ {[%clk 0:00:15.6]}
51... Kd2 {[%clk 0:00:07.3]} 52. Rd7+ {[%clk 0:00:15.8]} 52... Kc1 {[%clk
0:00:07.2]} 53. Rc7+ {[%clk 0:00:16.1]} 53... Rc2 {[%clk 0:00:07.2]} 54. Re7
{[%clk 0:00:16.1]} 54... Kd1 {[%clk 0:00:06.8]} 55. Re1+ {[%clk 0:00:15.8]}
55... Kd2 {[%clk 0:00:06.6]} 56. Re7 {[%clk 0:00:16]} 56... Rc1+ {[%clk
0:00:06.6]} 57. Kf2 {[%clk 0:00:16.3]} 57... Rc2 {[%clk 0:00:06.9]} 58. Rd7+
{[%clk 0:00:16.5]} 58... Kc3+ {[%clk 0:00:07]} 59. Kf1 {[%clk 0:00:16.7]} 59...
Rd2 {[%clk 0:00:07.9]} 60. Rc7+ {[%clk 0:00:16.8]} 60... Kd3 {[%clk 0:00:08.2]}
61. Rd7+ {[%clk 0:00:17.1]} 61... Ke3 {[%clk 0:00:08.6]} 62. Re7+ {[%clk
0:00:17.4]} 62... Kd4 {[%clk 0:00:08.9]} 63. Rd7+ {[%clk 0:00:17.8]} 63... Kc3
{[%clk 0:00:09.5]} 64. Rc7+ {[%clk 0:00:18]} 64... Kd3 {[%clk 0:00:08.8]} 65.
Rd7+ {[%clk 0:00:18.2]} 65... Kc2 {[%clk 0:00:09.7]} 66. Rc7+ {[%clk 0:00:18.4]}
66... Kd1 {[%clk 0:00:10.2]} 67. Re7 {[%clk 0:00:18]} 67... Rg2 {[%clk
0:00:10.4]} 68. Re1+ {[%clk 0:00:17.4]} 68... Kd2 {[%clk 0:00:10.3]} 69. Re7
{[%clk 0:00:17.1]} 69... Rxg3 {[%clk 0:00:10.7]} 70. Kf2 {[%clk 0:00:17.3]}
70... Rg2+ {[%clk 0:00:10.9]} 71. Kf1 {[%clk 0:00:17.7]} 71... Re2 {[%clk
0:00:11.6]} 72. Rd7+ {[%clk 0:00:17.7]} 72... Ke3 {[%clk 0:00:12]} 73. Re7+
{[%clk 0:00:18]} 73... Kd3 {[%clk 0:00:12.4]} 74. Rd7+ {[%clk 0:00:18.2]} 74...
Ke3 {[%clk 0:00:11.2]} 75. Re7+ {[%clk 0:00:18.3]} 75... Kf4 {[%clk 0:00:11]}
76. Rf7+ {[%clk 0:00:18.2]} 76... Kg3 {[%clk 0:00:11.2]} 77. Rg7 {[%clk
0:00:18]} 77... Ra2 {[%clk 0:00:11.2]} 78. Ke1 {[%clk 0:00:17.8]} 78... Ra1+
{[%clk 0:00:11]} 79. Kd2 {[%clk 0:00:17.8]} 79... f2 {[%clk 0:00:11.2]} 80. Rf7
{[%clk 0:00:17.7]} 80... f1=Q {[%clk 0:00:11.5]} 0-1

[Event "*** Titled Tuesday Blitz"]
[Site "Chess.com"]
[Date "2021.04.20"]
[Round "3"]
[White "VinzentSpitzl"]
[Black "ChessLover0108"]
[Result "1/2-1/2"]
[WhiteElo "2435"]
[BlackElo "2712"]
[TimeControl "180+1"]
[EndTime "10:28:52 PDT"]
[Termination "Game drawn - insufficient material"]

1. e4 {[%clk 0:03:00.9]} 1... Nf6 {[%clk 0:03:00.9]} 2. e5 {[%clk 0:03:00.7]}
2... Nd5 {[%clk 0:02:58.8]} 3. d4 {[%clk 0:03:01.2]} 3... d6 {[%clk 0:02:58.3]}
4. Nf3 {[%clk 0:03:01.5]} 4... dxe5 {[%clk 0:02:55.3]} 5. Nxe5 {[%clk
0:03:00.9]} 5... c6 {[%clk 0:02:56.2]} 6. Be2 {[%clk 0:03:00.6]} 6... g6 {[%clk
0:02:55.5]} 7. c4 {[%clk 0:03:00.7]} 7... Nf6 {[%clk 0:02:54.9]} 8. Nc3 {[%clk
0:03:00.7]} 8... Bg7 {[%clk 0:02:55.6]} 9. O-O {[%clk 0:03:00.7]} 9... O-O
{[%clk 0:02:56.5]} 10. Bf4 {[%clk 0:02:59.8]} 10... Nbd7 {[%clk 0:02:56.7]} 11.
Nf3 {[%clk 0:03:00.1]} 11... Nb6 {[%clk 0:02:56.3]} 12. Re1 {[%clk 0:02:58.7]}
12... Bg4 {[%clk 0:02:56.8]} 13. h3 {[%clk 0:02:58.1]} 13... Bxf3 {[%clk
0:02:56.9]} 14. Bxf3 {[%clk 0:02:59]} 14... Nxc4 {[%clk 0:02:57.3]} 15. Qe2
{[%clk 0:02:45.5]} 15... Qxd4 {[%clk 0:02:53.6]} 16. Bg3 {[%clk 0:02:33.7]}
16... e6 {[%clk 0:02:22.8]} 17. Rad1 {[%clk 0:02:30.9]} 17... Qc5 {[%clk
0:02:23.1]} 18. Na4 {[%clk 0:01:54.2]} 18... Qb5 {[%clk 0:02:20.8]} 19. b3
{[%clk 0:01:54]} 19... Nb6 {[%clk 0:01:50.5]} 20. Qxb5 {[%clk 0:01:49.5]} 20...
cxb5 {[%clk 0:01:51.4]} 21. Nc3 {[%clk 0:01:44.7]} 21... a6 {[%clk 0:01:47.7]}
22. Bxb7 {[%clk 0:01:43.6]} 22... Ra7 {[%clk 0:01:47.8]} 23. Bf3 {[%clk
0:01:40.3]} 23... Rc8 {[%clk 0:01:42.3]} 24. Rd3 {[%clk 0:01:35.4]} 24... h5
{[%clk 0:01:38.3]} 25. Red1 {[%clk 0:01:27.6]} 25... Nfd7 {[%clk 0:01:31.3]} 26.
Ne4 {[%clk 0:01:25.2]} 26... Be5 {[%clk 0:01:22.7]} 27. Nd6 {[%clk 0:00:36.1]}
27... Rc2 {[%clk 0:01:17.8]} 28. R1d2 {[%clk 0:00:25.8]} 28... Rxd2 {[%clk
0:01:13.3]} 29. Rxd2 {[%clk 0:00:26.7]} 29... Bxg3 {[%clk 0:01:14.2]} 30. fxg3
{[%clk 0:00:27.3]} 30... Ne5 {[%clk 0:01:14.5]} 31. Kf2 {[%clk 0:00:25]} 31...
Rd7 {[%clk 0:01:11.1]} 32. Ke3 {[%clk 0:00:20]} 32... Nd5+ {[%clk 0:01:08]} 33.
Bxd5 {[%clk 0:00:19.4]} 33... Rxd6 {[%clk 0:01:07.9]} 34. Be4 {[%clk 0:00:17.1]}
34... Rxd2 {[%clk 0:01:01.6]} 35. Kxd2 {[%clk 0:00:18]} 35... b4 {[%clk
0:01:02.5]} 36. Ke3 {[%clk 0:00:16.3]} 36... Kf8 {[%clk 0:00:38.6]} 37. Kd4
{[%clk 0:00:15.6]} 37... f6 {[%clk 0:00:37.5]} 38. Kc5 {[%clk 0:00:15.8]} 38...
a5 {[%clk 0:00:37]} 39. Kb5 {[%clk 0:00:12.8]} 39... f5 {[%clk 0:00:37]} 40. Bb7
{[%clk 0:00:07.7]} 40... Ke7 {[%clk 0:00:35.4]} 41. Kxa5 {[%clk 0:00:07.9]}
41... Nd3 {[%clk 0:00:34.4]} 42. Ba6 {[%clk 0:00:07.2]} 42... Nc1 {[%clk
0:00:30.5]} 43. Kxb4 {[%clk 0:00:07.3]} 43... Nxa2+ {[%clk 0:00:30.4]} 44. Kc5
{[%clk 0:00:07.7]} 44... Nc3 {[%clk 0:00:24.7]} 45. b4 {[%clk 0:00:07.7]} 45...
Ne4+ {[%clk 0:00:24.6]} 46. Kc6 {[%clk 0:00:05.3]} 46... Nxg3 {[%clk 0:00:23.9]}
47. b5 {[%clk 0:00:05.2]} 47... Ne4 {[%clk 0:00:23.4]} 48. b6 {[%clk 0:00:05.7]}
48... Nd6 {[%clk 0:00:22.5]} 49. b7 {[%clk 0:00:06]} 49... Nxb7 {[%clk
0:00:22.6]} 50. Bxb7 {[%clk 0:00:06.9]} 50... h4 {[%clk 0:00:22.3]} 51. Kc5
{[%clk 0:00:06.3]} 51... Kf6 {[%clk 0:00:21.3]} 52. Kd6 {[%clk 0:00:05.4]} 52...
e5 {[%clk 0:00:21.3]} 53. Bd5 {[%clk 0:00:05.7]} 53... e4 {[%clk 0:00:21]} 54.
Bc4 {[%clk 0:00:05.6]} 54... g5 {[%clk 0:00:10]} 55. Kd5 {[%clk 0:00:05.5]}
55... g4 {[%clk 0:00:02.6]} 56. hxg4 {[%clk 0:00:04.4]} 56... fxg4 {[%clk
0:00:03.5]} 57. Kxe4 {[%clk 0:00:04.6]} 57... Kg5 {[%clk 0:00:04.4]} 58. Be2
{[%clk 0:00:04.1]} 58... h3 {[%clk 0:00:04.2]} 59. gxh3 {[%clk 0:00:03.3]} 59...
gxh3 {[%clk 0:00:05.1]} 60. Kf3 {[%clk 0:00:03.7]} 60... Kh4 {[%clk 0:00:06]}
61. Kf2 {[%clk 0:00:03.4]} 61... h2 {[%clk 0:00:06.9]} 62. Kg2 {[%clk
0:00:03.9]} 62... h1=Q+ {[%clk 0:00:07]} 63. Kxh1 {[%clk 0:00:04.3]} 1/2-1/2